bitfinex/quotes_BTCUSD_20250114
["timestamp","ask_amount","ask_price","bid_price","bid_amount"]
[1736884695636,0.40216282,96654.0,96624.0,0.206985]
[1736884696200,0.40016282,96654.0,96624.0,0.206985]
[1736884696401,0.40016282,96654.0,96621.0,0.206992]
[1736884696746,0.42316282,96654.0,96620.0,0.00073862]
[1736884696923,0.41616282,96654.0,96619.0,0.20773662]
[1736884697155,0.5568624,96654.0,96619.0,0.20773662]
[1736884697535,0.57005741,96654.0,96619.0,0.20773662]
[1736884697938,0.56705741,96654.0,96619.0,0.20773662]
[1736884698144,0.206968,96634.0,96619.0,0.20086866]
[1736884698360,0.206968,96634.0,96619.0,0.20013004]
[1736884698563,0.206968,96634.0,96622.0,0.20699]
[1736884698767,0.21312,96637.0,96622.0,0.20699]
[1736884698980,0.00616,96637.0,96626.0,0.206982]
[1736884699497,0.00616,96637.0,96630.0,0.206974]
[1736884699697,0.206947,96643.0,96630.0,0.206974]
[1736884699907,0.206947,96643.0,96626.0,0.20747924]
[1736884700055,0.003,96637.0,96634.0,0.206965]
[1736884700271,0.00616,96653.0,96636.0,0.206962]
[1736884700489,0.00616,96653.0,96637.0,0.20696]
[1736884700695,0.00616,96653.0,96636.0,0.206962]
[1736884700696,0.206927,96652.0,96635.0,0.0761]
[1736884701072,0.206927,96652.0,96636.0,0.206962]
[1736884701488,0.001,96637.0,96636.0,0.206962]
[1736884701685,0.003,96637.0,96636.0,0.26529384]
[1736884701913,0.206927,96652.0,96636.0,0.206962]
[1736884702130,0.00616,96653.0,96639.0,0.413908]
[1736884702293,0.003,96652.0,96639.0,0.206953]
[1736884702498,0.001,96652.0,96639.0,0.206953]
[1736884702979,0.213087,96653.0,96639.0,0.206953]
[1736884705357,0.213087,96653.0,96635.0,0.283062]
[1736884705558,0.213087,96653.0,96638.0,0.206955]
[1736884706285,0.00616,96653.0,96638.0,0.206955]
[1736884706647,0.2101129,96665.0,96640.0,0.12299508]
[1736884706855,0.00616,96659.0,96645.0,0.20694]
[1736884707051,0.00616,96660.0,96640.0,0.12299508]
[1736884707266,0.00616,96660.0,96645.0,0.206941]
[1736884707838,0.00616,96660.0,96640.0,0.32994808]
[1736884708046,0.2101009,96671.0,96642.0,0.0967871]
[1736884708266,0.00616,96664.0,96643.0,0.03240091]
[1736884708469,0.00616,96664.0,96648.0,0.206935]
[1736884708672,0.001,96660.0,96648.0,0.206935]
[1736884708868,0.001,96660.0,96650.0,0.12299508]
[1736884709121,0.0495,96688.0,96657.0,0.0967871]
[1736884709327,0.007,96671.0,96670.0,0.206889]
[1736884709566,0.007,96671.0,96670.0,0.3036761]
[1736884709770,0.002,96671.0,96670.0,0.5297761]
[1736884709975,0.002,96671.0,96670.0,0.69220187]
[1736884710391,0.002,96671.0,96670.0,0.69269911]
[1736884710596,0.09209611,96696.0,96678.0,0.206872]
[1736884710992,0.43365,96700.0,96678.0,0.206872]
[1736884711351,0.02,96700.0,96678.0,0.65788602]
[1736884711971,0.00179446,96701.0,96678.0,0.56109892]
[1736884712594,0.01382035,96679.0,96678.0,0.65788602]
[1736884712823,0.01382035,96679.0,96678.0,0.56109892]
[1736884713119,0.01382035,96679.0,96678.0,0.59349983]
[1736884713341,0.01382035,96679.0,96678.0,0.356872]
[1736884713969,0.01482035,96679.0,96678.0,0.356872]
[1736884714327,0.01382035,96679.0,96678.0,0.55788602]
[1736884714757,0.01282035,96679.0,96678.0,0.55788602]
[1736884715132,0.01382035,96679.0,96678.0,0.55788602]
[1736884715328,0.01282035,96679.0,96678.0,0.77046212]
[1736884715587,0.01382035,96679.0,96678.0,0.77046212]
[1736884715905,0.01482035,96679.0,96678.0,0.77046212]
[1736884716093,0.01482035,96679.0,96678.0,0.69436212]
[1736884716352,0.01482035,96679.0,96678.0,0.306872]
[1736884716562,0.01482035,96679.0,96673.0,0.206881]
[1736884716733,0.01482035,96679.0,96671.0,0.206887]
[1736884717187,0.01482035,96679.0,96675.0,0.206878]
[1736884717598,0.01482035,96679.0,96671.0,0.206887]
[1736884717599,0.01482035,96679.0,96676.0,0.206876]
[1736884717801,0.01482035,96679.0,96676.0,0.26060153]
[1736884718007,0.01382035,96679.0,96676.0,0.46747753]
[1736884718547,0.01282035,96679.0,96678.0,0.3797591]
[1736884718756,0.01282035,96679.0,96678.0,0.38719892]
[1736884718961,0.01382035,96679.0,96676.0,0.206876]
[1736884719114,0.01282035,96679.0,96676.0,0.206876]
[1736884719311,0.01282035,96679.0,96671.0,0.206887]
[1736884719535,0.01382035,96679.0,96668.0,0.206892]
[1736884719738,0.01282035,96679.0,96668.0,0.206892]
[1736884719942,0.206872,96678.0,96663.0,0.206902]
[1736884720142,0.206884,96673.0,96655.0,0.206919]
[1736884720543,0.206884,96673.0,96642.0,0.0967871]
[1736884720799,0.0812129,96671.0,96641.0,0.13844593]
[1736884721005,0.18673304,96671.0,96647.0,0.206936]
[1736884721223,0.18673304,96671.0,96641.0,0.13844593]
[1736884721224,0.18673304,96671.0,96638.0,0.00073862]
[1736884721402,0.18673304,96671.0,96643.0,0.206946]
[1736884722368,0.18673304,96671.0,96642.0,0.206947]
[1736884722369,0.18873304,96671.0,96642.0,0.206947]
[1736884722541,0.18873304,96671.0,96639.0,0.206953]
[1736884722718,0.18873304,96671.0,96644.0,0.206944]
[1736884723101,0.19273304,96671.0,96644.0,0.206944]
[1736884724217,0.19273304,96671.0,96639.0,0.206953]
[1736884724218,0.206923,96654.0,96639.0,0.206953]
[1736884724424,0.206923,96654.0,96643.0,0.206946]
[1736884725029,0.20692,96656.0,96643.0,0.206946]
[1736884725232,0.20692,96656.0,96647.0,0.206938]
[1736884725564,0.20692,96656.0,96643.0,0.206946]
[1736884725889,0.20692,96656.0,96646.0,0.206938]
[1736884726021,0.20692,96656.0,96643.0,0.206946]
[1736884726627,0.0062,96658.0,96639.0,0.20710202]
[1736884726628,0.0062,96658.0,96639.0,0.00014902]
[1736884727249,0.0062,96658.0,96646.0,0.20694]
[1736884727454,0.0062,96661.0,96652.0,0.206927]
[1736884728436,0.20691,96660.0,96649.0,0.206932]
[1736884729208,0.0062,96661.0,96653.0,0.206925]
[1736884729332,0.0062,96661.0,96649.0,0.206932]
[1736884729734,0.206902,96664.0,96650.0,0.0206932]
[1736884729941,0.0032129,96678.0,96651.0,0.0761]
[1736884730291,0.206883,96673.0,96657.0,0.206916]
[1736884730496,0.413766,96673.0,96657.0,0.206916]
[1736884731028,0.206883,96673.0,96657.0,0.413832]
[1736884731403,0.206883,96673.0,96657.0,0.26840021]
[1736884731622,0.206883,96673.0,96657.0,0.206915]
[1736884732995,0.207883,96673.0,96657.0,0.206915]
[1736884734287,0.206891,96670.0,96657.0,0.206915]
[1736884735044,0.206891,96670.0,96656.0,0.206919]
[1736884735248,0.208883,96673.0,96660.0,0.20691]
[1736884735649,0.206883,96673.0,96660.0,0.20691]
[1736884735853,0.0062,96673.0,96665.0,0.206899]
[1736884736046,0.001,96670.0,96651.0,0.20693]
[1736884736248,0.206872,96678.0,96655.0,0.0967871]
[1736884736447,0.001,96673.0,96665.0,0.206899]
[1736884736669,0.003,96673.0,96665.0,0.206899]
[1736884736877,0.206872,96678.0,96665.0,0.206899]
[1736884737254,0.001,96670.0,96665.0,0.206899]
[1736884738491,0.206879,96675.0,96662.0,0.206906]
[1736884738861,0.002,96673.0,96662.0,0.206906]
[1736884739076,0.206893,96669.0,96653.0,0.206924]
[1736884740041,0.206886,96672.0,96657.0,0.206916]
[1736884741053,0.206886,96672.0,96660.0,0.206909]
[1736884741296,0.20688,96674.0,96660.0,0.206909]
[1736884741477,0.20688,96674.0,96657.0,0.206916]
[1736884741478,0.206876,96676.0,96657.0,0.206916]
[1736884741684,0.206889,96670.0,96657.0,0.206916]
[1736884742475,0.001,96672.0,96654.0,0.206923]
[1736884742654,0.001,96672.0,96655.0,0.10422692]
[1736884742854,0.002,96676.0,96664.0,0.206902]
[1736884743050,0.01282035,96679.0,96660.0,0.20691]
[1736884743253,0.001,96670.0,96661.0,0.15603291]
[1736884743451,0.01282035,96679.0,96669.0,0.206891]
[1736884743964,0.001,96672.0,96669.0,0.206891]
[1736884744163,0.001,96672.0,96666.0,0.206897]
[1736884744374,0.001,96672.0,96661.0,0.10422692]
[1736884744579,0.001,96672.0,96666.0,0.206897]
[1736884744781,0.003,96672.0,96666.0,0.206897]
[1736884745112,0.001,96672.0,96662.0,0.206906]
[1736884745417,0.2100849,96678.0,96661.0,0.00014902]
[1736884745614,0.0032129,96674.0,96661.0,0.00014902]
[1736884745754,0.206899,96666.0,96661.0,0.00014902]
[1736884745961,0.2101189,96662.0,96661.0,0.00014902]
[1736884746158,0.32054582,96662.0,96661.0,0.00014902]
[1736884746356,0.39624582,96662.0,96661.0,0.00014902]
[1736884746559,0.4822396,96662.0,96661.0,0.00014902]
[1736884747013,0.04985098,96661.0,96657.0,0.0008536]
[1736884747322,0.5087279,96658.0,96657.0,0.0008536]
[1736884747497,0.5087279,96658.0,96628.0,0.00073862]
[1736884747498,0.0757,96629.0,96625.0,0.00073862]
[1736884747726,0.206983,96626.0,96625.0,0.00073862]
[1736884747923,0.21148957,96626.0,96625.0,0.00073862]
[1736884748309,0.39144035,96626.0,96625.0,0.00073862]
[1736884748510,0.39144035,96626.0,96619.0,0.00095688]
[1736884748511,0.206996,96620.0,96619.0,0.00095688]
[1736884748718,0.31122292,96620.0,96619.0,0.00095688]
[1736884750171,0.31422292,96620.0,96619.0,0.00095688]
[1736884750374,0.31743582,96620.0,96619.0,0.00095688]
[1736884751500,0.31443582,96620.0,96619.0,0.00095688]
[1736884751690,0.32143582,96620.0,96619.0,0.00095688]
[1736884751842,0.32543582,96620.0,96619.0,0.00095688]
[1736884752041,0.31843582,96620.0,96619.0,0.00095688]
[1736884752269,0.33063582,96620.0,96619.0,0.00095688]
[1736884752465,0.32663582,96620.0,96619.0,0.00095688]
[1736884752679,0.31443582,96620.0,96619.0,0.00095688]
[1736884752885,0.33067582,96620.0,96619.0,0.00095688]
[1736884753115,0.3981402,96620.0,96619.0,0.00095688]
[1736884753314,0.3951402,96620.0,96619.0,0.00095688]
[1736884753454,0.4011402,96620.0,96619.0,0.00095688]
[1736884754266,0.4241402,96620.0,96619.0,0.00095688]
[1736884754710,0.32267582,96620.0,96619.0,0.00095688]
[1736884755098,0.32667582,96620.0,96619.0,0.00095688]
[1736884755434,0.32467582,96620.0,96619.0,0.00095688]
[1736884755633,0.33367582,96620.0,96619.0,0.00095688]
[1736884755834,0.32967582,96620.0,96619.0,0.00095688]
[1736884756214,0.33367582,96620.0,96619.0,0.00095688]
[1736884756396,0.32467582,96620.0,96619.0,0.00095688]
[1736884756814,0.33367582,96620.0,96619.0,0.00095688]
[1736884757700,0.215996,96620.0,96619.0,0.00095688]
[1736884757905,0.217236,96620.0,96619.0,0.00095688]
[1736884758315,0.222236,96620.0,96619.0,0.00095688]
[1736884758503,0.206981,96627.0,96619.0,0.00095688]
[1736884758710,0.00624,96626.0,96619.0,0.00095688]
[1736884758905,0.009,96620.0,96619.0,0.00095688]
[1736884759280,0.013,96620.0,96619.0,0.00095688]
[1736884759660,0.004,96620.0,96619.0,0.00095688]
[1736884760058,0.01024,96620.0,96619.0,0.00095688]
[1736884760278,0.414,96618.0,96614.0,7e-05]
[1736884760478,0.414,96618.0,96614.0,0.00021906]
[1736884761199,0.207005,96616.0,96614.0,0.00021906]
[1736884761925,0.00624,96615.0,96614.0,0.00021906]
[1736884763482,0.001,96616.0,96614.0,0.00021906]
[1736884764015,0.04904312,96619.0,96614.0,0.00021906]
[1736884764016,0.04904312,96619.0,96615.0,0.31123392]
[1736884764332,0.04904312,96619.0,96616.0,0.0752]
[1736884764452,0.04904312,96619.0,96617.0,0.31122892]
[1736884764681,0.04904312,96619.0,96618.0,0.2467871]
[1736884764881,0.04904312,96619.0,96618.0,0.45101402]
[1736884765077,0.04904312,96619.0,96618.0,0.55524094]
[1736884765730,0.05004312,96619.0,96618.0,0.57824094]
[1736884766074,0.04904312,96619.0,96618.0,0.62754094]
[1736884766202,0.05004312,96619.0,96618.0,0.62754094]
[1736884768416,0.05104312,96619.0,96618.0,0.62754094]
[1736884769063,0.05104312,96619.0,96618.0,0.35845384]
[1736884769269,0.05104312,96619.0,96618.0,0.0008536]
[1736884769998,0.05004312,96619.0,96618.0,0.0008536]
[1736884770398,0.001,96619.0,96618.0,0.0008536]
[1736884771662,0.002,96619.0,96618.0,0.0008536]
[1736884772029,0.00196,96620.0,96618.0,0.0008536]
[1736884772241,0.001,96619.0,96618.0,0.0008536]
[1736884773061,0.00196,96620.0,96618.0,0.0008536]
[1736884773256,0.001,96619.0,96618.0,0.0008536]
[1736884773900,0.001,96619.0,96618.0,0.02166217]
[1736884774224,0.00196,96620.0,96618.0,0.02166217]
[1736884774771,0.00196,96620.0,96619.0,0.206998]
[1736884774977,0.00196,96620.0,96618.0,0.02166217]
[1736884775182,0.00196,96620.0,96619.0,0.206998]
[1736884775382,0.00196,96620.0,96619.0,0.27128752]
[1736884776186,0.00296,96620.0,96619.0,0.27128752]
[1736884777042,0.00196,96620.0,96619.0,0.27128752]
[1736884777349,0.00296,96620.0,96619.0,0.27128752]
[1736884777689,0.00196,96620.0,96619.0,0.27128752]
[1736884778218,0.00196,96620.0,96619.0,0.47230154]
[1736884778415,0.00196,96620.0,96619.0,0.70260154]
[1736884778997,0.00296,96620.0,96619.0,0.70260154]
[1736884779233,0.00196,96620.0,96619.0,0.70260154]
[1736884779639,0.00296,96620.0,96619.0,0.70260154]
[1736884782132,0.00475341,96620.0,96619.0,0.70260154]
[1736884784058,0.00475341,96620.0,96619.0,0.62230154]
[1736884786084,0.30511611,96665.0,96638.0,0.0967871]
[1736884786304,0.09821611,96665.0,96641.0,0.0967871]
[1736884786513,0.206908,96662.0,96642.0,0.31117592]
[1736884786738,0.0720129,96661.0,96640.0,0.206952]
[1736884787337,0.20871057,96657.0,96640.0,0.206952]
[1736884787535,0.00179257,96657.0,96643.0,0.206945]
[1736884787715,0.00379257,96657.0,96645.0,0.206942]
[1736884787956,0.00479257,96657.0,96656.0,0.206919]
[1736884789048,0.00279257,96657.0,96656.0,0.206919]
[1736884789244,0.00479257,96657.0,96656.0,0.206919]
[1736884789712,0.00179257,96657.0,96656.0,0.206919]
[1736884789915,0.00179257,96657.0,96656.0,0.24945467]
[1736884790118,0.00279257,96657.0,96656.0,0.24945467]
[1736884790517,0.00179257,96657.0,96656.0,0.24945467]
[1736884790818,0.00179257,96657.0,96656.0,0.25045467]
[1736884791024,0.00179257,96657.0,96656.0,0.209919]
[1736884791698,0.00179257,96657.0,96656.0,0.198891]
[1736884793144,0.00179257,96657.0,96656.0,0.003]
[1736884795382,0.00179257,96657.0,96656.0,0.209919]
[1736884795587,0.00179257,96657.0,96656.0,0.2516036]
[1736884795726,0.00179257,96657.0,96656.0,0.35583052]
[1736884796349,0.00179257,96657.0,96656.0,0.60261762]
[1736884796606,0.00179257,96657.0,96656.0,0.68301762]
[1736884796978,0.00179257,96657.0,96656.0,0.78301762]
[1736884797527,0.00179257,96657.0,96656.0,0.78201762]
[1736884797731,0.00179257,96657.0,96656.0,0.78401762]
[1736884798879,0.00179257,96657.0,96656.0,0.80432447]
[1736884799055,0.00279257,96657.0,96656.0,0.82287831]
[1736884799255,0.00279257,96657.0,96656.0,0.70578436]
[1736884799454,0.00279257,96657.0,96656.0,0.52538436]
[1736884799717,0.00279257,96657.0,96656.0,0.47314592]
[1736884799887,0.00279257,96657.0,96656.0,0.012]
[1736884800229,0.00279257,96657.0,96656.0,0.218919]
[1736884800430,0.00279257,96657.0,96656.0,0.012]
[1736884800639,0.00279257,96657.0,96656.0,0.218919]
[1736884801097,0.00279257,96657.0,96656.0,0.2821969]
[1736884801298,0.00279257,96657.0,96656.0,0.4321969]
[1736884801505,0.00279257,96657.0,96656.0,0.5321969]
[1736884802053,0.00179257,96657.0,96656.0,0.5241969]
[1736884802248,0.00179257,96657.0,96656.0,0.62842382]
[1736884802454,0.00179257,96657.0,96656.0,0.79951092]
[1736884802699,0.00179257,96657.0,96656.0,0.82551092]
[1736884802904,5.7e-07,96657.0,96656.0,0.82551092]
[1736884803110,5.7e-07,96657.0,96656.0,0.83151092]
[1736884803319,9.2e-07,96679.0,96678.0,0.1967871]
[1736884803543,2.7e-07,96680.0,96679.0,0.4180871]
[1736884803747,0.00049602,96680.0,96679.0,0.52231402]
[1736884803953,0.35541518,96721.0,96700.0,0.0967871]
[1736884804160,0.35541518,96721.0,96700.0,0.55783902]
[1736884804161,0.0019431,96701.0,96700.0,0.55783902]
[1736884804404,0.0019431,96701.0,96700.0,0.46105192]
[1736884804607,0.0019431,96701.0,96700.0,0.33196808]
[1736884805688,0.0019431,96701.0,96700.0,0.57875518]
[1736884805903,0.0029431,96701.0,96700.0,0.68675518]
[1736884806069,0.0029431,96701.0,96700.0,0.70975518]
[1736884806268,0.0029431,96701.0,96700.0,0.76005518]
[1736884806679,0.0029431,96701.0,96700.0,0.75705518]
[1736884807039,0.0039431,96701.0,96700.0,0.76705518]
[1736884807492,0.0039431,96701.0,96700.0,0.76405518]
[1736884807932,0.0049431,96701.0,96700.0,0.76905518]
[1736884808316,0.0029431,96701.0,96700.0,0.78505518]
[1736884808923,0.0029431,96701.0,96700.0,0.68375518]
[1736884809124,0.0039431,96701.0,96700.0,0.49596808]
[1736884809326,0.0039431,96701.0,96700.0,0.014]
[1736884810005,0.0039431,96701.0,96700.0,0.11822692]
[1736884810165,0.0029431,96701.0,96700.0,0.21001402]
[1736884810379,0.0019431,96701.0,96700.0,0.20101402]
[1736884810602,0.0019431,96701.0,96700.0,0.28720808]
[1736884811007,0.0019431,96701.0,96697.0,0.15]
[1736884811008,0.0817431,96701.0,96691.0,0.206843]
[1736884811411,0.0817431,96701.0,96696.0,0.206833]
[1736884811656,0.0019431,96701.0,96696.0,0.206833]
[1736884811864,0.0029431,96701.0,96700.0,0.007]
[1736884812069,0.0019431,96701.0,96698.0,0.206829]
[1736884812444,0.0029431,96701.0,96700.0,0.004]
[1736884813099,0.0029431,96701.0,96700.0,0.007]
[1736884813301,0.0029431,96701.0,96700.0,0.11122692]
[1736884813493,0.0029431,96701.0,96700.0,0.007]
[1736884813914,0.0029431,96701.0,96700.0,0.26122692]
[1736884814192,0.0029431,96701.0,96700.0,0.33869382]
[1736884815860,0.0029431,96701.0,96700.0,0.34169382]
[1736884818677,0.0029431,96701.0,96700.0,0.43848092]
[1736884819048,0.0029431,96701.0,96700.0,0.46148092]
[1736884820238,0.0029431,96701.0,96700.0,0.48269773]
[1736884820671,0.0029431,96701.0,96700.0,0.43848092]
[1736884821051,0.0029431,96701.0,96700.0,0.34169382]
[1736884821497,0.0029431,96701.0,96700.0,0.2374669]
[1736884821700,0.0029431,96701.0,96700.0,0.007]
[1736884821870,0.0029431,96701.0,96700.0,0.006]
[1736884822019,0.0039431,96701.0,96700.0,0.015]
[1736884822436,0.0019431,96701.0,96691.0,0.206843]
[1736884822639,0.0019431,96701.0,96700.0,0.002]
[1736884822838,0.0019431,96701.0,96700.0,0.001]
[1736884823298,0.0019431,96701.0,96700.0,0.003]
[1736884823702,0.0019431,96701.0,96697.0,0.206831]
[1736884823898,0.0019431,96701.0,96693.0,0.206839]
[1736884824097,0.0019431,96701.0,96698.0,0.413656]
[1736884824399,0.0019431,96701.0,96700.0,0.206825]
[1736884825031,0.0039431,96701.0,96700.0,0.206825]
[1736884825150,0.0019431,96701.0,96700.0,0.206825]
[1736884825363,0.0019431,96701.0,96700.0,0.210825]
[1736884826006,0.0019431,96701.0,96700.0,0.004]
[1736884826230,0.0019431,96701.0,96700.0,0.006]
[1736884826589,0.0019431,96701.0,96700.0,0.004]
[1736884827147,0.0019431,96701.0,96700.0,0.05818939]
[1736884827721,0.0019431,96701.0,96700.0,0.006]
[1736884830736,0.06364148,96707.0,96700.0,0.006]
[1736884830955,0.06373905,96707.0,96700.0,0.006]
[1736884831165,0.0032129,96701.0,96700.0,0.006]
[1736884831361,0.30713268,96701.0,96700.0,0.006]
[1736884831565,0.206865,96681.0,96680.0,0.0008532]
[1736884831910,0.213025,96681.0,96680.0,0.0008532]
[1736884832153,0.32175773,96681.0,96680.0,0.0008532]
[1736884832350,0.34346482,96681.0,96680.0,0.0008532]
[1736884832554,0.34346482,96681.0,96638.0,0.01058334]
[1736884832555,0.34346482,96681.0,96638.0,0.206957]
[1736884832679,0.2585299,96657.0,96620.0,0.22043598]
[1736884832882,0.36891682,96657.0,96637.0,0.413918]
[1736884833276,0.36891682,96657.0,96629.0,0.206975]
[1736884833472,0.36891682,96657.0,96620.0,0.12364888]
[1736884833728,0.44461682,96657.0,96622.0,0.206991]
[1736884834201,0.44461682,96657.0,96656.0,0.00134915]
[1736884835148,0.45561682,96657.0,96656.0,0.00234915]
[1736884835320,0.44661682,96657.0,96656.0,0.00134915]
[1736884835524,0.04865085,96656.0,96626.0,0.206982]
[1736884835705,0.0032129,96645.0,96627.0,0.0413973]
[1736884835911,0.0093729,96644.0,96635.0,0.206964]
[1736884836110,0.0093729,96644.0,96626.0,0.00014864]
[1736884836317,0.0093729,96644.0,96629.0,0.206977]
[1736884836538,0.0093729,96644.0,96633.0,0.206967]
[1736884837602,0.206947,96643.0,96633.0,0.206967]
[1736884837815,0.0093729,96644.0,96633.0,0.206967]
[1736884838665,0.206947,96643.0,96633.0,0.206967]
[1736884838883,0.206947,96643.0,96630.0,0.206975]
[1736884838884,0.413895,96643.0,96630.0,0.206975]
[1736884839403,0.413895,96643.0,96627.0,0.206979]
[1736884839578,0.206964,96635.0,96626.0,0.00014864]
[1736884839782,0.206964,96635.0,96623.0,0.20213864]
[1736884840004,0.206964,96635.0,96623.0,0.2022877]
[1736884840237,0.0032129,96636.0,96623.0,0.2022877]
[1736884840443,0.05,96630.0,96624.0,0.206987]
[1736884840645,0.05,96630.0,96628.0,0.206978]
[1736884842287,0.05,96630.0,96628.0,0.209978]
[1736884842429,0.05,96630.0,96628.0,0.207978]
[1736884842615,0.05,96630.0,96628.0,0.210978]
[1736884843022,0.05,96630.0,96628.0,0.209978]
[1736884843235,0.051,96630.0,96628.0,0.209978]
[1736884843802,0.051,96630.0,96628.0,0.206978]
[1736884844002,0.051,96630.0,96624.0,0.206987]
[1736884844204,0.054,96630.0,96628.0,0.206977]
[1736884844450,0.05,96630.0,96623.0,0.00014906]
[1736884844849,0.05,96630.0,96628.0,0.003]
[1736884845066,0.05,96630.0,96628.0,0.001]
[1736884845245,0.05,96630.0,96625.0,0.206983]
[1736884845448,0.0032129,96637.0,96627.0,0.206981]
[1736884845644,0.0032129,96637.0,96625.0,0.206983]
[1736884845645,0.001,96630.0,96623.0,0.00014906]
[1736884846097,0.0032129,96632.0,96623.0,0.00014906]
[1736884846278,0.0032129,96624.0,96623.0,0.00014906]
[1736884846619,0.10873365,96624.0,96623.0,0.00014906]
[1736884846817,0.18170141,96624.0,96623.0,0.00014906]
[1736884847238,0.10873365,96624.0,96623.0,0.00014906]
[1736884847439,0.18393365,96624.0,96623.0,0.00014906]
[1736884847647,0.18593365,96624.0,96623.0,0.00014906]
[1736884848050,0.18393365,96624.0,96623.0,0.00014906]
[1736884848347,0.35693365,96624.0,96623.0,0.00014906]
[1736884848559,0.46886674,96624.0,96623.0,0.00114906]
[1736884848778,0.0032129,96620.0,96614.0,7e-05]
[1736884848980,0.28173383,96620.0,96614.0,7e-05]
[1736884849095,0.28043982,96620.0,96614.0,7e-05]
[1736884849296,0.35563982,96620.0,96614.0,7e-05]
[1736884849534,0.41703264,96620.0,96614.0,7e-05]
[1736884850305,0.3832109,96619.0,96614.0,7e-05]
[1736884850511,0.2514129,96615.0,96614.0,7e-05]
[1736884850760,0.36175982,96615.0,96614.0,7e-05]
[1736884851901,0.37675982,96615.0,96614.0,0.00207]
[1736884852178,0.2102409,96605.0,96590.0,0.01221591]
[1736884852948,0.31446782,96605.0,96590.0,0.01221591]
[1736884854201,0.32746782,96605.0,96604.0,0.0013]
[1736884854346,0.2232409,96605.0,96604.0,0.0013]
[1736884854796,0.0487,96604.0,96590.0,0.01221591]
[1736884856298,0.0519129,96604.0,96590.0,0.01221591]
[1736884856489,0.0580329,96604.0,96590.0,0.01221591]
[1736884856875,0.17125982,96604.0,96603.0,0.0018548]
[1736884857178,0.17655384,96604.0,96603.0,0.0018548]
[1736884857957,0.12655982,96604.0,96603.0,0.0018548]
[1736884858157,0.013,96604.0,96603.0,0.0018548]
[1736884858377,0.01912,96604.0,96603.0,0.0018548]
[1736884859350,0.0223329,96604.0,96603.0,0.0018548]
[1736884859554,0.14949531,96604.0,96603.0,0.0018548]
[1736884859755,0.15078936,96604.0,96603.0,0.0018548]
[1736884860152,0.11485387,96604.0,96603.0,0.0008548]
[1736884860515,0.11685387,96604.0,96603.0,0.0008548]
[1736884860959,0.11885387,96604.0,96603.0,0.0008548]
[1736884861444,0.21805395,96604.0,96603.0,0.0008548]
[1736884861684,0.26285982,96604.0,96603.0,0.0008548]
[1736884861918,0.49160537,96604.0,96603.0,0.0018548]
[1736884862195,0.50060537,96604.0,96603.0,0.0018548]
[1736884862429,0.3094709,96591.0,96590.0,0.01221591]
[1736884862672,0.41369782,96591.0,96590.0,0.01231868]
[1736884862867,0.207095,96574.0,96555.0,0.207135]
[1736884863157,0.00612,96573.0,96560.0,0.00049684]
[1736884863381,0.207099,96572.0,96560.0,0.00049684]
[1736884863599,0.0032129,96567.0,96560.0,0.00049684]
[1736884863814,0.0032129,96569.0,96561.0,0.207122]
[1736884864273,0.1555967,96590.0,96560.0,0.00049684]
[1736884864274,0.0032129,96587.0,96562.0,0.1457013]
[1736884864476,0.003,96574.0,96573.0,0.207097]
[1736884864688,0.207049,96596.0,96563.0,0.227]
[1736884864689,0.00612,96586.0,96585.0,0.20707]
[1736884865159,0.12509403,96604.0,96586.0,0.207069]
[1736884865160,0.0032129,96600.0,96586.0,0.207069]
[1736884865387,0.00612,96598.0,96587.0,0.23928892]
[1736884865521,0.0032129,96592.0,96588.0,0.03222292]
[1736884865888,0.0032129,96596.0,96589.0,0.03222785]
[1736884866003,0.0032129,96596.0,96568.0,0.1]
[1736884866207,0.0032129,96596.0,96570.0,0.15]
[1736884866408,0.0032129,96596.0,96574.0,0.15]
[1736884866607,0.008,96587.0,96576.0,0.15]
[1736884866936,0.008,96587.0,96569.0,0.041476]
[1736884866937,0.0032129,96585.0,96569.0,0.041476]
[1736884867115,0.00612,96598.0,96569.0,0.00049684]
[1736884867116,0.0032129,96576.0,96569.0,0.00049684]
[1736884867316,0.0032129,96570.0,96569.0,0.00049684]
[1736884867435,0.0093329,96570.0,96569.0,0.00049684]
[1736884868542,0.10422692,96575.0,96569.0,0.00149684]
[1736884868739,0.00612,96570.0,96569.0,0.00149684]
[1736884869429,0.008,96576.0,96569.0,0.10572376]
[1736884869665,0.008,96576.0,96575.0,0.207092]
[1736884869861,0.008,96576.0,96575.0,0.31131892]
[1736884870191,0.006,96576.0,96575.0,0.31131892]
[1736884870394,0.0032129,96598.0,96575.0,0.10422692]
[1736884870395,0.00612,96598.0,96575.0,0.10422692]
[1736884870619,0.0032129,96615.0,96591.0,0.15]
[1736884870824,0.00612,96613.0,96603.0,0.207032]
[1736884871142,0.0032129,96617.0,96601.0,0.207036]
[1736884871526,0.00612,96614.0,96601.0,0.414072]
[1736884871724,0.00612,96611.0,96601.0,0.414072]
[1736884871931,0.0032129,96608.0,96596.0,0.207046]
[1736884872136,0.0032129,96607.0,96603.0,0.002]
[1736884872336,0.00279403,96604.0,96603.0,0.002]
[1736884872754,0.00600693,96604.0,96603.0,0.002]
[1736884873125,0.16062479,96604.0,96603.0,0.002]
[1736884873326,0.23072479,96604.0,96603.0,0.002]
[1736884873547,0.45563074,96604.0,96603.0,0.002]
[1736884873751,0.45463074,96604.0,96603.0,0.002]
[1736884874053,0.0032129,96588.0,96570.0,0.18557791]
[1736884874183,0.0032129,96588.0,96576.0,0.20709]
[1736884874390,0.05,96582.0,96576.0,0.20709]
[1736884874593,0.05,96582.0,96580.0,0.207082]
[1736884875831,0.05,96582.0,96580.0,0.208082]
[1736884876037,0.05,96582.0,96580.0,0.2495992]
[1736884876817,0.05,96582.0,96580.0,0.209082]
[1736884877235,0.05,96582.0,96580.0,0.208082]
[1736884877444,0.05,96582.0,96580.0,0.210082]
[1736884878270,0.05,96582.0,96580.0,0.003]
[1736884879552,0.0032129,96581.0,96580.0,0.003]
[1736884879758,0.0032129,96581.0,96580.0,0.001]
[1736884879980,0.05,96582.0,96571.0,0.00014917]
[1736884879981,0.0032129,96575.0,96571.0,0.00014917]
[1736884880585,0.0032129,96575.0,96563.0,0.207118]
[1736884880784,0.00336168,96575.0,96563.0,0.207118]
[1736884881208,0.0032129,96574.0,96563.0,0.207118]